fUSD/lending_fUSD_20240912
["ID","MTS","AMOUNT","RATE_DAILY","PERIOD"]
[337809852,1726128642825,-1655.3,0.00014824,2]
[337809853,1726128642834,-151.0,0.00014824,2]
[337809854,1726128642844,-151.0,0.00014824,2]
[337809855,1726128642853,-151.0,0.00014824,2]
[337809856,1726128642863,-4981.25,0.00014824,2]
[337809857,1726128642873,-151.0,0.00014824,2]
[337809858,1726128642882,-4981.25,0.00014824,2]
[337809859,1726128642892,-151.0,0.00014824,2]
[337809860,1726128642901,-217.341628,0.00014824,2]
[337809861,1726128642911,-670.742457,0.00014824,2]
[337809862,1726128642920,-670.742457,0.00014824,2]
[337809863,1726128642929,-670.742457,0.00014824,2]
[337809864,1726128642938,-670.742457,0.00014824,2]
[337809865,1726128642948,-670.742457,0.00014824,2]
[337809866,1726128642957,-10000.0,0.00014824,2]
[337809867,1726128642966,-10000.0,0.00014824,2]
[337809868,1726128642975,-4480.11,0.00014824,2]
[337809869,1726128642985,-4480.11,0.00014824,2]
[337809870,1726128642994,-10000.0,0.00014824,2]
[337809871,1726128643004,-2993.35,0.00014824,2]
[337809872,1726128643014,-10000.0,0.00014824,2]
[337809874,1726128643024,-2993.35,0.00014824,2]
[337809875,1726128643033,-670.742457,0.00014824,2]
[337809877,1726128643042,-670.742457,0.00014824,2]
[337809878,1726128643052,-10000.0,0.00014824,2]
[337809879,1726128643062,-670.742457,0.00014824,2]
[337809880,1726128643071,-10776.2,0.00014824,2]
[337809881,1726128643081,-670.742457,0.00014824,2]
[337809882,1726128643090,-670.742457,0.00014824,2]
[337809883,1726128643100,-184.949616,0.00014824,2]
[337809884,1726128643109,-10000.0,0.00014824,2]
[337809885,1726128643118,-184.949616,0.00014824,2]
[337809886,1726128643127,-10000.0,0.00014824,2]
[337809887,1726128643137,-184.949616,0.00014824,2]
[337809888,1726128643148,-10000.0,0.00014824,2]
[337809889,1726128643158,-184.949616,0.00014824,2]
[337809890,1726128643167,-10000.0,0.00014824,2]
[337809891,1726128643176,-10000.0,0.00014824,2]
[337809892,1726128643186,-151.0,0.00014824,2]
[337809893,1726128643195,-151.0,0.00014824,2]
[337809894,1726128643204,-2182.46,0.00014824,2]
[337809895,1726128643214,-151.0,0.00014824,2]
[337809896,1726128643223,-10000.0,0.00014824,2]
[337809897,1726128643233,-184.949616,0.00014824,2]
[337809898,1726128643243,-151.0,0.00014824,2]
[337809899,1726128643252,-10000.0,0.00014824,2]
[337809900,1726128643261,-151.0,0.00014824,2]
[337809901,1726128643271,-184.949616,0.00014824,2]
[337809902,1726128643280,-1631.32,0.00014824,2]
[337809903,1726128643290,-1631.32,0.00014824,2]
[337809904,1726128643299,-10000.0,0.00014824,2]
[337809905,1726128643309,-184.949616,0.00014824,2]
[337809906,1726128643318,-184.949608,0.00014824,2]
[337809907,1726128643329,-10000.0,0.00014824,2]
[337809908,1726128643339,-10000.0,0.00014824,2]
[337809909,1726128643348,-1077.91,0.00014824,2]
[337809910,1726128643360,-233.311205,0.00014824,2]
[337809911,1726128643370,-1162.61,0.00014824,2]
[337809912,1726128643381,-500.0,0.00014824,2]
[337809913,1726128643391,-500.0,0.00014824,2]
[337809914,1726128643402,-500.0,0.00014824,2]
[337809915,1726128643412,-500.0,0.00014824,2]
[337809916,1726128643423,-500.0,0.00014824,2]
[337809917,1726128643433,-2122.03,0.00014824,2]
[337809918,1726128643443,-2122.03,0.00014824,2]
[337809919,1726128643455,-2603.17,0.00014824,2]
[337809920,1726128643465,-2603.17,0.00014824,2]
[337809921,1726128643475,-500.0,0.00014824,2]
[337809922,1726128643487,-151.0,0.00014825,2]
[337809923,1726128643498,-151.0,0.00014825,2]
[337809924,1726128643509,-151.0,0.00014825,2]
[337809925,1726128643520,-151.0,0.00014825,2]
[337809926,1726128643530,-151.0,0.00014825,2]
[337809927,1726128643539,-151.0,0.00014825,2]
[337809928,1726128643549,-151.0,0.00014825,2]
[337809929,1726128643558,-151.0,0.00014825,2]
[337809930,1726128643567,-151.0,0.00014825,2]
[337809931,1726128643577,-151.0,0.00014825,2]
[337809932,1726128643587,-151.0,0.00014825,2]
[337809933,1726128643597,-195.595339,0.00014825,2]
[337809934,1726128643607,-549.930976,0.00014825,2]
[337809935,1726128643616,-549.930976,0.00014825,2]
[337809936,1726128643626,-549.930976,0.00014825,2]
[337809937,1726128643636,-549.930976,0.00014825,2]
[337809938,1726128643646,-738.81419,0.00014825,2]
[337809939,1726128643656,-738.81419,0.00014825,2]
[337809940,1726128643668,-738.81419,0.00014825,2]
[337809941,1726128643678,-738.81419,0.00014825,2]
[337809942,1726128643932,-259.028582,0.00014825,2]
[337809943,1726128643943,-259.028582,0.00014825,2]
[337809944,1726128643953,-259.028582,0.00014825,2]
[337809945,1726128643962,-259.028582,0.00014825,2]
[337809946,1726128643972,-888.026011,0.00014825,2]
[337809947,1726128643982,-888.026011,0.00014825,2]
[337809948,1726128643993,-151.0,0.00014825,2]
[337809949,1726128644004,-151.0,0.00014825,2]
[337809950,1726128644013,-888.026011,0.00014825,2]
[337809951,1726128644023,-888.026011,0.00014825,2]
[337809952,1726128644032,-151.0,0.00014825,2]
[337809953,1726128644041,-151.0,0.00014825,2]
[337809954,1726128644051,-151.0,0.00014825,2]
[337809955,1726128644061,-151.0,0.00014825,2]
[337809956,1726128644071,-968.687998,0.00014825,2]
[337809957,1726128644081,-968.687998,0.00014825,2]
[337809958,1726128644090,-151.0,0.00014825,2]
[337809959,1726128644100,-171.156514,0.00014825,2]
[337809960,1726128644110,-171.156514,0.00014825,2]
[337809961,1726128644121,-171.156514,0.00014825,2]
[337809962,1726128644132,-171.156514,0.00014825,2]
[337809963,1726128644142,-981.375163,0.00014825,2]
[337809964,1726128644155,-981.375163,0.00014825,2]
[337809965,1726128644164,-981.375163,0.00014825,2]
[337809966,1726128644175,-981.375163,0.00014825,2]
[337809967,1726128644185,-564.794965,0.00014825,2]
[337809968,1726128644195,-564.794965,0.00014825,2]
[337809969,1726128644204,-564.794965,0.00014825,2]
[337809970,1726128644213,-564.794965,0.00014825,2]
[337809971,1726128644224,-324.359123,0.00014825,2]
[337809972,1726128644233,-324.359123,0.00014825,2]
[337809973,1726128644242,-324.359123,0.00014825,2]
[337809974,1726128644252,-324.359123,0.00014825,2]
[337809975,1726128644261,-469.544961,0.00014825,2]
[337809976,1726128644271,-469.544961,0.00014825,2]
[337809977,1726128644281,-151.0,0.00014825,2]
[337809978,1726128644290,-151.0,0.00014825,2]
[337809979,1726128644300,-233.629301,0.00014825,2]
[337809980,1726128644310,-469.544961,0.00014825,2]
[337809981,1726128644319,-469.544961,0.00014825,2]
[337809982,1726128644328,-163.687285,0.00014825,2]
[337809983,1726128644337,-163.687285,0.00014825,2]
[337809984,1726128644347,-163.687285,0.00014825,2]
[337809985,1726128644356,-163.687285,0.00014825,2]
[337809986,1726128644365,-151.0,0.00014825,2]
[337809987,1726128644375,-151.0,0.00014825,2]
[337809988,1726128644384,-151.0,0.00014825,2]
[337809989,1726128644394,-296.365443,0.00014825,2]
[337809990,1726128644403,-197.700835,0.00014825,2]
[337809991,1726128644412,-197.700835,0.00014825,2]
[337809992,1726128644422,-197.700835,0.00014825,2]
[337809993,1726128644431,-197.700835,0.00014825,2]
[337809994,1726128644440,-197.700835,0.00014825,2]
[337809995,1726128644450,-197.700835,0.00014825,2]
[337809996,1726128644459,-418.369081,0.00014825,2]
[337809997,1726128644468,-418.369081,0.00014825,2]
[337809998,1726128644478,-418.369081,0.00014825,2]
[337809999,1726128644487,-418.369081,0.00014825,2]
[337810000,1726128644497,-418.369081,0.00014825,2]
[337810001,1726128644507,-418.369081,0.00014825,2]
[337810002,1726128644517,-624.040586,0.00014825,2]
[337810003,1726128644526,-624.040586,0.00014825,2]
[337810004,1726128644536,-624.040586,0.00014825,2]
[337810005,1726128644545,-624.040586,0.00014825,2]
[337810006,1726128644555,-224.609465,0.00014825,2]
[337810007,1726128644565,-224.609465,0.00014825,2]
[337810008,1726128644575,-224.609465,0.00014825,2]
[337810009,1726128644584,-224.609465,0.00014825,2]
[337810010,1726128644593,-224.609465,0.00014825,2]
[337810011,1726128644602,-224.609465,0.00014825,2]
[337810012,1726128644613,-151.0,0.00014825,2]
[337810013,1726128644622,-151.0,0.00014825,2]
[337810014,1726128644631,-670.742457,0.00014825,2]
[337810015,1726128644641,-670.742457,0.00014825,2]
[337810016,1726128644650,-10000.0,0.00014825,2]
[337810017,1726128644659,-10000.0,0.00014825,2]
[337810018,1726128644668,-670.742457,0.00014825,2]
[337810019,1726128644678,-670.742452,0.00014825,2]
[337810020,1726128644687,-10000.0,0.00014825,2]
[337810021,1726128644697,-10000.0,0.00014825,2]
[337810022,1726128644706,-151.0,0.00014825,2]
[337810023,1726128644716,-151.0,0.00014825,2]
[337810024,1726128644726,-10000.0,0.00014825,2]
[337810025,1726128644736,-10000.0,0.00014825,2]
[337810026,1726128644745,-151.0,0.00014826,2]
[337810027,1726128644754,-151.0,0.00014826,2]
[337810028,1726128644764,-151.0,0.00014826,2]
[337810029,1726128644773,-151.0,0.00014826,2]
[337810030,1726128644782,-151.0,0.00014826,2]
[337810031,1726128644792,-549.930976,0.00014826,2]
[337810032,1726128644802,-549.930976,0.00014826,2]
[337810033,1726128644811,-738.81419,0.00014826,2]
[337810034,1726128644821,-738.81419,0.00014826,2]
[337810035,1726128644830,-259.028582,0.00014826,2]
[337810036,1726128644840,-259.028582,0.00014826,2]
[337810037,1726128644850,-888.026011,0.00014826,2]
[337810038,1726128644860,-151.0,0.00014826,2]
[337810039,1726128644870,-888.026011,0.00014826,2]
[337810040,1726128644879,-968.687998,0.00014826,2]
[337810041,1726128644889,-981.375163,0.00014826,2]
[337810042,1726128644899,-981.375163,0.00014826,2]
[337810043,1726128644908,-150.0,0.00014827,2]
[337810044,1726128644917,-150.0,0.00014829,2]
[337810045,1726128644927,-1168.82,0.00014832,2]
[337810046,1726128644936,-2182.46,0.00014832,2]
[337810047,1726128644946,-2182.46,0.00014832,2]
[337810048,1726128644956,-2182.46,0.00014832,2]
[337810049,1726128644966,-2121.31,0.00014832,2]
[337810050,1726128644975,-1162.61,0.00014832,2]
[337810051,1726128644985,-1162.61,0.00014832,2]
[337810052,1726128644995,-1162.61,0.00014832,2]
[337810053,1726128645005,-404.25767558,0.00014832,2]
[337810054,1726128645014,-500.0,0.00014832,2]
[337810055,1726128645023,-212237.72578978,0.00014833,2]
[337810056,1726128645033,-7129.06,0.00014833,2]
[337810057,1726128645043,-933.28,0.00014833,2]
[337810058,1726128645053,-12805.09,0.00014833,2]
[337810059,1726128645063,-1991.61,0.00014833,2]
[337810060,1726128645073,-5283.86,0.00014833,2]
[337810061,1726128645083,-10694.09,0.00014833,2]
[337810062,1726128645092,-2861.85,0.00014833,2]
[337810063,1726128645102,-1357.73,0.00014833,2]
[337810064,1726128645111,-469.544961,0.00014833,2]
[337810065,1726128645121,-2487.6,0.00014833,2]
[337810066,1726128645131,-151.0,0.00014833,2]
[337810067,1726128645140,-469.544961,0.00014833,2]
[337810068,1726128645155,-171.135695,0.00014833,2]
[337810069,1726128645164,-3313.11,0.00014833,2]
[337810070,1726128645174,-1013.09,0.00014833,2]
[337810071,1726128645184,-4263.9,0.00014833,2]
[337810072,1726128645194,-6257.13,0.00014833,2]
[337810073,1726128645204,-163.687285,0.00014833,2]
[337810074,1726128645214,-1838.6,0.00014833,2]
[337810075,1726128645223,-163.687285,0.00014833,2]
[337810076,1726128645233,-163.687285,0.00014833,2]
[337810077,1726128645243,-163.687285,0.00014833,2]
[337810078,1726128645252,-6064.97,0.00014833,2]
[337810079,1726128645262,-151.0,0.00014833,2]
[337810080,1726128645271,-151.0,0.00014833,2]
[337810081,1726128645282,-1370.92,0.00014833,2]
[337810082,1726128645292,-4374.02,0.00014833,2]
[337810083,1726128645302,-5139.54,0.00014833,2]
[337810084,1726128645312,-5139.54,0.00014833,2]
[337810085,1726128645322,-5139.54,0.00014833,2]
[337810086,1726128645332,-5139.54,0.00014833,2]
[337810087,1726128645342,-5139.54,0.00014833,2]
[337810088,1726128645352,-5139.54,0.00014833,2]
[337810089,1726128645362,-6654.2,0.00014833,2]
[337810090,1726128645371,-6654.2,0.00014833,2]
[337810091,1726128645381,-6654.2,0.00014833,2]
[337810092,1726128645391,-6654.2,0.00014833,2]
[337810093,1726128645400,-6654.2,0.00014833,2]
[337810094,1726128645409,-197.700835,0.00014833,2]
[337810095,1726128645420,-6654.2,0.00014833,2]
[337810096,1726128645430,-197.700835,0.00014833,2]
[337810097,1726128645440,-197.700835,0.00014833,2]
[337810098,1726128645450,-5102.25,0.00014833,2]
[337810099,1726128645459,-197.700826,0.00014833,2]
[337810100,1726128645469,-5102.25,0.00014833,2]
[337810101,1726128645479,-5102.25,0.00014833,2]
[337810102,1726128645490,-5102.25,0.00014833,2]
[337810103,1726128645500,-5102.25,0.00014833,2]
[337810104,1726128645510,-5102.25,0.00014833,2]
[337810105,1726128645520,-5921.14,0.00014833,2]
[337810106,1726128645531,-4780.41,0.00014833,2]
[337810107,1726128645542,-1293.41,0.00014833,2]
[337810108,1726128645552,-1293.41,0.00014833,2]
[337810109,1726128645562,-1293.41,0.00014833,2]
[337810110,1726128645571,-7538.98,0.00014833,2]
[337810111,1726128645581,-1293.41,0.00014833,2]
[337810112,1726128645591,-7538.98,0.00014833,2]
[337810113,1726128645601,-1293.41,0.00014833,2]
[337810114,1726128645611,-7538.98,0.00014833,2]
[337810115,1726128645620,-1293.41,0.00014833,2]
[337810116,1726128645631,-7538.98,0.00014833,2]
[337810117,1726128645642,-3945.6,0.00014833,2]
[337810118,1726128645651,-7538.98,0.00014833,2]
[337810119,1726128645660,-7538.98,0.00014833,2]
[337810120,1726128645670,-2347.46,0.00014833,2]
[337810121,1726128645680,-2347.46,0.00014833,2]
[337810122,1726128645690,-2347.46,0.00014833,2]
[337810123,1726128645701,-2347.46,0.00014833,2]
[337810124,1726128645711,-2347.46,0.00014833,2]
[337810125,1726128645721,-2347.46,0.00014833,2]
[337810126,1726128645731,-12342.0,0.00014833,2]
[337810127,1726128645740,-19094.5,0.00014833,2]
[337810128,1726128645750,-6332.95,0.00014833,2]
[337810129,1726128645760,-5221.02,0.00014833,2]
[337810130,1726128645770,-6332.95,0.00014833,2]
[337810131,1726128645781,-5221.02,0.00014833,2]
[337810132,1726128645792,-6332.95,0.00014833,2]
[337810133,1726128645802,-5221.02,0.00014833,2]
[337810134,1726128645812,-6332.95,0.00014833,2]
[337810135,1726128645822,-5221.02,0.00014833,2]
[337810136,1726128645832,-6332.95,0.00014833,2]
[337810137,1726128645841,-5221.02,0.00014833,2]
[337810138,1726128645851,-13857.91,0.00014833,2]
[337810139,1726128645861,-6332.95,0.00014833,2]
[337810140,1726128645870,-5221.02,0.00014833,2]
[337810141,1726128645880,-4644.6,0.00014833,2]
[337810142,1726128645889,-4644.6,0.00014833,2]
[337810143,1726128645899,-4644.6,0.00014833,2]
[337810144,1726128645909,-4644.6,0.00014833,2]
[337810145,1726128645919,-4644.6,0.00014833,2]
[337810146,1726128645929,-4644.6,0.00014833,2]
[337810147,1726128645939,-53615.78,0.00014833,2]
[337810148,1726128645949,-500.0,0.00014833,2]
[337810149,1726128645959,-418.369081,0.00014833,2]
[337810150,1726128645968,-418.369081,0.00014833,2]
[337810151,1726128645978,-17411.88,0.00014833,2]
[337810152,1726128645987,-17411.88,0.00014833,2]
[337810153,1726128645996,-17411.88,0.00014833,2]
[337810154,1726128646006,-3049.42065179,0.00014833,2]
[337810206,1726128646933,-2110.94400146,0.00014833,2]
[337810209,1726128646950,-700.0,0.00014833,2]
[337810266,1726128647532,-155.371968,0.0001477,2]
[337810268,1726128647543,-471.17574319,0.00014823,2]
[337810270,1726128647554,-724.63820774,0.00014823,2]
[337810278,1726128647620,-291.364475,0.00014823,2]
[337810280,1726128647634,-443.24157407,0.00014823,2]
[337810282,1726128647644,-1930.42,0.00014832,2]
[337810285,1726128647655,-11551.51534675,0.00014833,2]
[337810287,1726128647666,-17411.88,0.00014833,2]
[337810289,1726128647677,-17411.88,0.00014833,2]
[337810291,1726128647688,-418.369081,0.00014833,2]
[337810293,1726128647698,-418.36908,0.00014833,2]
[337810295,1726128647710,-500.0,0.00014833,2]
[337810298,1726128647722,-500.0,0.00014833,2]
[337810300,1726128647732,-500.0,0.00014833,2]
[337810302,1726128647742,-500.0,0.00014833,2]
[337810304,1726128647752,-500.0,0.00014833,2]
[337810306,1726128647762,-500.0,0.00014833,2]
[337810308,1726128647773,-2825.52,0.00014833,2]
[337810310,1726128647785,-624.040586,0.00014833,2]
[337810313,1726128647795,-624.040586,0.00014833,2]
[337810315,1726128647807,-7210.91,0.00014833,2]
[337810317,1726128647817,-6335.31,0.00014833,2]
[337810319,1726128647827,-6335.31,0.00014833,2]
[337810321,1726128647837,-2342.84028391,0.00014833,2]
[337810323,1726128647849,-3992.46971609,0.00014833,2]
[337810325,1726128647859,-6335.31,0.00014833,2]
[337810327,1726128647870,-6335.31,0.00014833,2]
[337810329,1726128647880,-6335.31,0.00014833,2]
[337810331,1726128647890,-624.040586,0.00014833,2]
[337810334,1726128647901,-624.040586,0.00014833,2]
[337810336,1726128647912,-5646.33,0.00014833,2]
[337810338,1726128647922,-5646.33,0.00014833,2]
[337810340,1726128647933,-5646.33,0.00014833,2]
[337810342,1726128647943,-224.609465,0.00014833,2]
[337810344,1726128647953,-5646.33,0.00014833,2]
[337810346,1726128647964,-5646.33,0.00014833,2]
[337810348,1726128647974,-224.609465,0.00014833,2]
[337810350,1726128647984,-5646.33,0.00014833,2]
[337810352,1726128647995,-1655.3,0.00014833,2]
[337810354,1726128648005,-224.609465,0.00014833,2]
[337810356,1726128648015,-224.609465,0.00014833,2]
[337810358,1726128648024,-4981.25,0.00014833,2]
[337810360,1726128648034,-4981.25,0.00014833,2]
[337810362,1726128648044,-4981.25,0.00014833,2]
[337810364,1726128648055,-4981.25,0.00014833,2]
[337810366,1726128648066,-4981.25,0.00014833,2]
[337810368,1726128648077,-4981.25,0.00014833,2]
[337810370,1726128648087,-1168.82,0.00014833,2]
[337810372,1726128648098,-1168.82,0.00014833,2]
[337810374,1726128648108,-1168.82,0.00014833,2]
[337810377,1726128648118,-1168.82,0.00014833,2]
[337810379,1726128648129,-1168.82,0.00014833,2]
[337810381,1726128648139,-1168.82,0.00014833,2]
[337810383,1726128648152,-4480.11,0.00014833,2]
[337810385,1726128648162,-1168.82,0.00014833,2]
[337810387,1726128648174,-4480.11,0.00014833,2]
[337810389,1726128648184,-1168.82,0.00014833,2]
[337810391,1726128648195,-4480.11,0.00014833,2]
[337810393,1726128648205,-2993.35,0.00014833,2]
[337810395,1726128648214,-642.69873508,0.00014833,2]
[337810397,1726128648229,-1232.82936571,0.00014833,2]
[337810577,1726128650300,-811.09678596,0.00014733,2]
[337810579,1726128650312,-1183.3,0.00014733,2]
[337810692,1726128651480,-1618.98145893,0.00014733,2]
[337810693,1726128651490,-500.0,0.00014799,2]
[337810694,1726128651499,-500.0,0.00014799,2]
[337810695,1726128651509,-82733.57,0.00014799,2]
[337810696,1726128651518,-500.0,0.00014823,2]
[337810697,1726128651528,-82733.57,0.00014823,2]
[337810699,1726128651538,-500.0,0.00014824,2]
[337810701,1726128651547,-500.0,0.00014824,2]
[337810703,1726128651557,-500.0,0.00014824,2]
[337810705,1726128651567,-82733.57,0.00014824,2]
[337810707,1726128651576,-82733.57,0.00014824,2]
[337810709,1726128651586,-2604.58189921,0.00014833,2]
[337810711,1726128651596,-2993.35,0.00014833,2]
[337810713,1726128651606,-4480.11,0.00014833,2]
[337810715,1726128651616,-2993.35,0.00014833,2]
[337810717,1726128651626,-4480.11,0.00014833,2]
[337810719,1726128651635,-2993.35,0.00014833,2]
[337810721,1726128651645,-10776.2,0.00014833,2]
[337810723,1726128651655,-2993.35,0.00014833,2]
[337810725,1726128651664,-2993.35,0.00014833,2]
[337810727,1726128651673,-2182.46,0.00014833,2]
[337810728,1726128651682,-2182.46,0.00014833,2]
[337810730,1726128651691,-1631.32,0.00014833,2]
[337810732,1726128651701,-2182.46,0.00014833,2]
[337810734,1726128651711,-1631.32,0.00014833,2]
[337810736,1726128651720,-2182.46,0.00014833,2]
[337810738,1726128651730,-1631.32,0.00014833,2]
[337810740,1726128651740,-2182.46,0.00014833,2]
[337810742,1726128651749,-1631.32,0.00014833,2]
[337810744,1726128651758,-2182.46,0.00014833,2]
[337810746,1726128651768,-2182.46,0.00014833,2]
[337810748,1726128651777,-1631.32,0.00014833,2]
[337810750,1726128651787,-1077.91,0.00014833,2]
[337810752,1726128651797,-2182.46,0.00014833,2]
[337810754,1726128651807,-1631.32,0.00014833,2]
[337810756,1726128651817,-2121.31,0.00014833,2]
[337810758,1726128651828,-2121.31,0.00014833,2]
[337810760,1726128651838,-2121.31,0.00014833,2]
[337810762,1726128651847,-2121.31,0.00014833,2]
[337810764,1726128651856,-2121.31,0.00014833,2]
[337810765,1726128651865,-2121.31,0.00014833,2]
[337810768,1726128651877,-2121.31,0.00014833,2]
[337810770,1726128651887,-2121.31,0.00014833,2]
[337810772,1726128651896,-500.0,0.00014833,2]
[337810774,1726128651906,-1162.61,0.00014833,2]
[337810775,1726128651915,-500.0,0.00014833,2]
[337810777,1726128651925,-500.0,0.00014833,2]
[337810779,1726128651934,-1162.61,0.00014833,2]
[337810781,1726128651944,-500.0,0.00014833,2]
[337810783,1726128651953,-500.0,0.00014833,2]
[337810785,1726128651963,-1162.61,0.00014833,2]
[337810787,1726128651972,-491.13,0.00014833,2]
[337810789,1726128651983,-500.0,0.00014833,2]
[337810791,1726128651993,-1162.61,0.00014833,2]
[337810793,1726128652002,-1162.61,0.00014833,2]
[337810795,1726128652012,-500.0,0.00014833,2]
[337810797,1726128652021,-1162.61,0.00014833,2]
[337810799,1726128652031,-500.0,0.00014833,2]
[337810801,1726128652041,-1162.61,0.00014833,2]
[337810803,1726128652051,-500.0,0.00014833,2]
[337810805,1726128652061,-1162.61,0.00014833,2]
[337810807,1726128652071,-2122.03,0.00014833,2]
[337810809,1726128652081,-500.0,0.00014833,2]
[337810811,1726128652093,-2122.03,0.00014833,2]
[337810813,1726128652102,-500.0,0.00014833,2]
[337810815,1726128652112,-2122.03,0.00014833,2]
[337810817,1726128652122,-500.0,0.00014833,2]
[337810819,1726128652134,-2122.03,0.00014833,2]
[337810822,1726128652146,-500.0,0.00014833,2]
[337810824,1726128652157,-2122.03,0.00014833,2]
[337810826,1726128652166,-500.0,0.00014833,2]
[337810828,1726128652176,-2122.03,0.00014833,2]
[337810829,1726128652187,-500.0,0.00014833,2]
[337810831,1726128652196,-500.0,0.00014833,2]
[337810833,1726128652206,-500.0,0.00014833,2]
[337810836,1726128652217,-2603.17,0.00014833,2]
[337810838,1726128652227,-2603.17,0.00014833,2]
[337810840,1726128652237,-2603.17,0.00014833,2]
[337810842,1726128652247,-2603.17,0.00014833,2]
[337810843,1726128652256,-500.0,0.00014833,2]
[337810845,1726128652265,-2603.17,0.00014833,2]
[337810847,1726128652275,-2603.17,0.00014833,2]
[337810849,1726128652285,-1930.42,0.00014833,2]
[337810851,1726128652295,-1930.42,0.00014833,2]
[337810853,1726128652305,-1930.42,0.00014833,2]
[337810855,1726128652314,-1930.42,0.00014833,2]
[337810857,1726128652324,-1930.42,0.00014833,2]
[337810859,1726128652333,-1930.42,0.00014833,2]
[337810861,1726128652343,-1930.42,0.00014833,2]
[337810863,1726128652352,-1930.42,0.00014833,2]
[337810865,1726128652363,-293.99,0.00014833,2]
[337810867,1726128652373,-500.0,0.00014833,2]
[337810869,1726128652383,-500.0,0.00014833,2]
[337810871,1726128652392,-500.0,0.00014833,2]
[337810872,1726128652401,-500.0,0.00014833,2]
[337810874,1726128652411,-500.0,0.00014833,2]
[337810876,1726128652420,-82733.57,0.00014833,2]
[337810878,1726128652429,-500.0,0.00014833,2]
[337810880,1726128652439,-82733.57,0.00014833,2]
[337810882,1726128652449,-151.0,0.00014834,2]
[337810884,1726128652458,-151.0,0.00014834,2]
[337810886,1726128652468,-159.729961,0.00014834,2]
[337810888,1726128652477,-159.729961,0.00014834,2]
[337810890,1726128652486,-151.0,0.00014834,2]
[337810892,1726128652496,-151.0,0.00014834,2]
[337810894,1726128652506,-151.0,0.00014834,2]
[337810896,1726128652515,-151.0,0.00014834,2]
[337810898,1726128652524,-151.0,0.00014834,2]
[337810900,1726128652534,-151.0,0.00014834,2]
[337810902,1726128652543,-151.0,0.00014834,2]
[337810904,1726128652552,-727.806783,0.00014834,2]
[337810905,1726128652563,-727.806783,0.00014834,2]
[337810907,1726128652573,-151.0,0.00014834,2]
[337810909,1726128652583,-224.592243,0.00014834,2]
[337810911,1726128652592,-224.592243,0.00014834,2]
[337810912,1726128652602,-151.0,0.00014834,2]
[337810913,1726128652612,-151.0,0.00014834,2]
[337810915,1726128652622,-311.351348,0.00014834,2]
[337810917,1726128652631,-151.0,0.00014834,2]
[337810919,1726128652641,-151.0,0.00014834,2]
[337810921,1726128652650,-311.351348,0.00014834,2]
[337810923,1726128652660,-151.0,0.00014834,2]
[337810925,1726128652670,-151.0,0.00014834,2]
[337810927,1726128652680,-151.0,0.00014834,2]
[337810929,1726128652690,-151.0,0.00014834,2]
[337810931,1726128652700,-151.0,0.00014834,2]
[337810933,1726128652709,-151.0,0.00014834,2]
[337810935,1726128652718,-177.731631,0.00014834,2]
[337810937,1726128652728,-1861.96,0.00014834,2]
[337810939,1726128652738,-177.731631,0.00014834,2]
[337810941,1726128652747,-2210.32,0.00014834,2]
[337810943,1726128652757,-151.0,0.00014834,2]
[337810944,1726128652766,-151.0,0.00014834,2]
[337810946,1726128652776,-510.48,0.00014834,2]